fUST/lending_fUST_20240226
["ID","MTS","AMOUNT","RATE_DAILY","PERIOD"]
[315154043,1708893044455,-500.0,0.00019178,2]
[315154045,1708893044464,-500.0,0.00019178,2]
[315154047,1708893044473,-500.0,0.00019178,2]
[315154049,1708893044483,-1354.69,0.00019178,2]
[315154051,1708893044492,-500.0,0.00019178,2]
[315154053,1708893044501,-500.0,0.00019178,2]
[315154055,1708893044510,-500.0,0.00019178,2]
[315154057,1708893044519,-500.0,0.00019178,2]
[315154058,1708893044528,-500.0,0.00019178,2]
[315154060,1708893044537,-500.39052972,0.00019178,2]
[315154062,1708893044546,-500.0,0.00019178,2]
[315154064,1708893044555,-500.0,0.00019178,2]
[315154066,1708893044564,-213.34353825,0.00019178,2]
[315154067,1708893044573,-500.0,0.00019178,2]
[315154068,1708893044582,-561.17050029,0.00019178,2]
[315154069,1708893044591,-965.71,0.00019178,2]
[315154070,1708893044600,-500.0,0.00019178,2]
[315154071,1708893044609,-500.0,0.00019178,2]
[315154072,1708893044618,-3124.74,0.00019178,2]
[315154074,1708893044628,-500.0,0.00019178,2]
[315154076,1708893044637,-1823.17,0.00019178,2]
[315154078,1708893044646,-1163.81,0.00019178,2]
[315154080,1708893044656,-500.0,0.00019178,2]
[315154082,1708893044665,-500.0,0.00019178,2]
[315154084,1708893044673,-1954.85,0.00019178,2]
[315154086,1708893044682,-500.0,0.00019178,2]
[315154088,1708893044691,-500.0,0.00019178,2]
[315154090,1708893044700,-500.0,0.00019178,2]
[315154092,1708893044709,-1341.95,0.00019178,2]
[315154094,1708893044719,-1772.1,0.00019178,2]
[315154096,1708893044728,-318.74336463,0.00019178,2]
[315154098,1708893044737,-500.0,0.00019178,2]
[315154100,1708893044746,-14984.91,0.00019178,2]
[315154102,1708893044755,-500.0,0.00019178,2]
[315154104,1708893044764,-1703.83,0.00019178,2]
[315154106,1708893044774,-500.0,0.00019178,2]
[315154108,1708893044783,-500.0,0.00019178,2]
[315154110,1708893044792,-151.0,0.00019178,2]
[315154112,1708893044801,-500.0,0.00019178,2]
[315154113,1708893044809,-500.0,0.00019178,2]
[315154114,1708893044818,-500.0,0.00019178,2]
[315154115,1708893044827,-151.0,0.00019178,2]
[315154116,1708893044836,-915.47,0.00019178,2]
[315154117,1708893044845,-151.0,0.00019178,2]
[315154118,1708893044855,-500.0,0.00019178,2]
[315154119,1708893044864,-500.0,0.00019178,2]
[315154120,1708893044873,-500.0,0.00019178,2]
[315154121,1708893044882,-500.0,0.00019178,2]
[315154122,1708893044891,-500.0,0.00019178,2]
[315154123,1708893044900,-500.0,0.00019178,2]
[315154124,1708893044909,-1451.95,0.00019178,2]
[315154125,1708893044918,-7203.29,0.00019178,2]
[315154126,1708893044927,-500.0,0.00019178,2]
[315154127,1708893044936,-187.33386723,0.00019178,2]
[315154128,1708893044945,-500.0,0.00019178,2]
[315154129,1708893044954,-500.0,0.00019178,2]
[315154130,1708893044963,-434.18077611,0.00019178,2]
[315154131,1708893044971,-1151.89,0.00019178,2]
[315154132,1708893044980,-500.0,0.00019178,2]
[315154133,1708893044989,-500.0,0.00019178,2]
[315154135,1708893044999,-500.0,0.00019178,2]
[315154137,1708893045009,-2548.29,0.00019178,2]
[315154139,1708893045018,-500.0,0.00019178,2]
[315154141,1708893045028,-2013.86,0.00019178,2]
[315154143,1708893045037,-1802.22,0.00019178,2]
[315154145,1708893045046,-5553.57,0.00019178,2]
[315154147,1708893045056,-881.4,0.00019178,2]
[315154149,1708893045065,-14704.82,0.00019178,2]
[315154150,1708893045074,-7898.38,0.00019178,2]
[315154152,1708893045084,-1371.88,0.00019178,2]
[315154154,1708893045093,-151.0,0.00019178,2]
[315154156,1708893045102,-151.0,0.00019178,2]
[315154158,1708893045110,-500.0,0.00019178,2]
[315154160,1708893045120,-500.0,0.00019178,2]
[315154162,1708893045131,-815.42,0.00019178,2]
[315154164,1708893045140,-1989.85,0.00019178,2]
[315154166,1708893045149,-500.0,0.00019178,2]
[315154168,1708893045159,-500.0,0.00019178,2]
[315154170,1708893045168,-500.0,0.00019178,2]
[315154172,1708893045177,-500.0,0.00019178,2]
[315154174,1708893045186,-694.63465149,0.00019178,2]
[315154176,1708893045195,-161.435405,0.00019178,2]
[315154178,1708893045204,-161.736935,0.00019178,2]
[315154180,1708893045213,-166.666666,0.00019178,2]
[315154182,1708893045222,-173.359371,0.00019178,2]
[315154184,1708893045231,-151.0,0.00019252,2]
[315154186,1708893045240,-38967.35445739,0.00019252,2]
[315154188,1708893045249,-500.0,0.00019299,2]
[315154190,1708893045258,-500.0,0.00019299,2]
[315154192,1708893045267,-500.0,0.00019341,2]
[315154194,1708893045277,-500.0,0.00019341,2]
[315154196,1708893045286,-500.0,0.00019341,2]
[315154198,1708893045298,-319.09963093,0.00019341,2]
[315154200,1708893045307,-500.0,0.00019349,2]
[315154202,1708893045316,-500.0,0.00019349,2]
[315154204,1708893045325,-500.0,0.00019349,2]
[315154206,1708893045335,-319.09963093,0.00019349,2]
[315154208,1708893045344,-2000.0,0.0001935,2]
[315154210,1708893045353,-151.0,0.00019351,2]
[315154212,1708893045362,-500.0,0.00019351,2]
[315154214,1708893045372,-151.0,0.00019352,2]
[315154216,1708893045381,-226.9535109,0.000194,2]
[315154218,1708893045391,-200.5569553,0.000194,2]
[315154220,1708893045399,-306.0,0.000194,2]
[315154222,1708893045408,-200.5569553,0.000194,2]
[315154224,1708893045417,-153.0,0.000194,2]
[315154226,1708893045426,-199.0619364,0.000194,2]
[315154228,1708893045434,-153.0,0.000194,2]
[315154230,1708893045443,-400.9721176,0.000194,2]
[315154232,1708893045452,-200.5569553,0.000194,2]
[315154234,1708893045461,-200.5294442,0.000194,2]
[315154236,1708893045471,-200.5569553,0.000194,2]
[315154237,1708893045480,-199.9004443,0.000194,2]
[315154239,1708893045489,-314.73297265,0.00019439,2]
[315154241,1708893045498,-243.58118859,0.0001945,2]
[315154243,1708893045508,-260.244995,0.0001945,2]
[315154245,1708893045517,-500.0,0.0001945,2]
[315154247,1708893045526,-500.0,0.0001945,2]
[315154249,1708893045536,-500.0,0.0001945,2]
[315154252,1708893045545,-319.09963093,0.0001945,2]
[315154254,1708893045556,-500.0,0.0001945,2]
[315154256,1708893045565,-500.0,0.0001945,2]
[315154258,1708893045574,-500.0,0.0001945,2]
[315154260,1708893045584,-319.09963093,0.0001945,2]
[315154262,1708893045592,-500.0,0.0001945,2]
[315154264,1708893045602,-500.0,0.0001945,2]
[315154266,1708893045611,-500.0,0.0001945,2]
[315154268,1708893045620,-319.09963093,0.0001945,2]
[315154270,1708893045631,-1589.221176,0.0001945,2]
[315154272,1708893045640,-500.0,0.00019451,2]
[315154274,1708893045649,-500.0,0.00019451,2]
[315154276,1708893045658,-500.0,0.00019451,2]
[315154278,1708893045668,-319.09963093,0.00019451,2]
[315154280,1708893045677,-500.0,0.00019451,2]
[315154282,1708893045687,-500.0,0.00019451,2]
[315154284,1708893045697,-500.0,0.00019451,2]
[315154286,1708893045706,-319.09963093,0.00019451,2]
[315154288,1708893045715,-500.0,0.00019451,2]
[315154290,1708893045724,-500.0,0.00019451,2]
[315154292,1708893045734,-500.0,0.00019451,2]
[315154294,1708893045743,-319.09963093,0.00019451,2]
[315154296,1708893045752,-500.0,0.00019451,2]
[315154298,1708893045762,-500.0,0.00019451,2]
[315154300,1708893045771,-500.0,0.00019451,2]
[315154302,1708893045781,-319.09963093,0.00019451,2]
[315154304,1708893045790,-151.0,0.00019451,2]
[315154306,1708893045799,-500.0,0.00019451,2]
[315154308,1708893045808,-500.0,0.00019451,2]
[315154310,1708893045817,-500.0,0.00019451,2]
[315154312,1708893045827,-510.28369682,0.00019451,2]
[315154314,1708893045837,-36451.97350204,0.00019452,2]
[315154316,1708893045846,-500.0,0.00019452,2]
[315154318,1708893045856,-500.0,0.00019452,2]
[315154320,1708893045866,-500.0,0.00019452,2]
[315154322,1708893045875,-500.0,0.00019452,2]
[315154324,1708893045885,-500.0,0.00019452,2]
[315154326,1708893045894,-500.0,0.00019452,2]
[315154328,1708893045903,-500.0,0.00019452,2]
[315154330,1708893045912,-500.0,0.00019452,2]
[315154332,1708893045921,-500.0,0.00019452,2]
[315154334,1708893045931,-555.17227293,0.00019452,2]
[315154336,1708893045940,-500.0,0.00019452,2]
[315154338,1708893045948,-500.0,0.00019452,2]
[315154340,1708893045957,-500.0,0.00019452,2]
[315154342,1708893045966,-500.0,0.00019452,2]
[315154344,1708893045975,-956.01,0.00019452,2]
[315154346,1708893045984,-500.0,0.00019452,2]
[315154348,1708893045993,-500.0,0.00019452,2]
[315154350,1708893046002,-500.0,0.00019452,2]
[315154352,1708893046011,-500.0,0.00019452,2]
[315154354,1708893046020,-151.0,0.00019452,2]
[315154356,1708893046029,-151.0,0.00019452,2]
[315154358,1708893046039,-151.0,0.00019452,2]
[315154360,1708893046048,-226.522998,0.00019452,2]
[315154362,1708893046057,-500.0,0.00019452,2]
[315154364,1708893046066,-500.0,0.00019452,2]
[315154366,1708893046075,-500.0,0.00019452,2]
[315154368,1708893046087,-500.0,0.00019452,2]
[315154370,1708893046096,-500.0,0.00019452,2]
[315154372,1708893046106,-1070.3,0.00019452,2]
[315154374,1708893046115,-500.0,0.00019452,2]
[315154376,1708893046124,-364.98661253,0.00019452,2]
[315154378,1708893046133,-500.0,0.00019452,2]
[315154381,1708893046142,-504.2479257,0.00019452,2]
[315154383,1708893046151,-500.0,0.00019452,2]
[315154385,1708893046160,-500.0,0.00019452,2]
[315154387,1708893046170,-1354.69,0.00019452,2]
[315154389,1708893046179,-500.0,0.00019452,2]
[315154391,1708893046188,-500.0,0.00019452,2]
[315154409,1708893046306,-500.0,0.00019452,2]
[315154411,1708893046316,-500.0,0.00019452,2]
[315154413,1708893046326,-289.26923522,0.00019452,2]
[315154415,1708893046335,-500.0,0.00019452,2]
[315154417,1708893046345,-500.0,0.00019452,2]
[315154419,1708893046353,-965.71,0.00019452,2]
[315154421,1708893046364,-640.89287761,0.00019452,2]
[315154423,1708893046374,-500.0,0.00019452,2]
[315154425,1708893046383,-3124.74,0.00019452,2]
[315154427,1708893046392,-500.0,0.00019452,2]
[315154429,1708893046401,-1823.17,0.00019452,2]
[315154431,1708893046411,-1163.81,0.00019452,2]
[315154433,1708893046420,-500.0,0.00019452,2]
[315154435,1708893046429,-1954.85,0.00019452,2]
[315154437,1708893046438,-500.0,0.00019452,2]
[315154439,1708893046447,-1341.95,0.00019452,2]
[315154441,1708893046456,-1772.1,0.00019452,2]
[315154443,1708893046466,-500.0,0.00019452,2]
[315154444,1708893046475,-14984.91,0.00019452,2]
[315154447,1708893046485,-1703.83,0.00019452,2]
[315154449,1708893046494,-500.0,0.00019452,2]
[315154450,1708893046503,-500.0,0.00019452,2]
[315154453,1708893046513,-915.47,0.00019452,2]
[315154454,1708893046522,-151.0,0.00019452,2]
[315154456,1708893046531,-151.0,0.00019452,2]
[315154458,1708893046540,-225.502448,0.00019452,2]
[315154461,1708893046550,-500.0,0.00019452,2]
[315154463,1708893046559,-1451.95,0.00019452,2]
[315154465,1708893046568,-7203.29,0.00019452,2]
[315154467,1708893046577,-500.0,0.00019452,2]
[315154468,1708893046587,-500.0,0.00019452,2]
[315154471,1708893046596,-1151.89,0.00019452,2]
[315154472,1708893046605,-500.0,0.00019452,2]
[315154474,1708893046614,-500.0,0.00019452,2]
[315154476,1708893046624,-2548.29,0.00019452,2]
[315154479,1708893046634,-500.0,0.00019452,2]
[315154481,1708893046643,-2013.86,0.00019452,2]
[315154482,1708893046652,-1802.22,0.00019452,2]
[315154484,1708893046662,-5553.57,0.00019452,2]
[315154486,1708893046671,-881.4,0.00019452,2]
[315154488,1708893046680,-14704.82,0.00019452,2]
[315154490,1708893046689,-7898.38,0.00019452,2]
[315154492,1708893046698,-1371.88,0.00019452,2]
[315154494,1708893046708,-500.0,0.00019452,2]
[315154496,1708893046717,-815.42,0.00019452,2]
[315154498,1708893046726,-1989.85,0.00019452,2]
[315154500,1708893046735,-500.0,0.00019452,2]
[315154502,1708893046745,-500.0,0.00019452,2]
[315154504,1708893046755,-500.0,0.00019452,2]
[315154506,1708893046764,-288.48433278,0.00019461,2]
[315154508,1708893046773,-182.51135653,0.00019465,2]
[315154510,1708893046783,-288.48433278,0.00019465,2]
[315154512,1708893046792,-1482.04413286,0.00019468,2]
[315154514,1708893046802,-3959.77627347,0.00019469,2]
[315154516,1708893046811,-3959.77627347,0.00019471,2]
[315154519,1708893046821,-288.48433278,0.00019474,2]
[315154521,1708893046830,-182.51135653,0.00019477,2]
[315154523,1708893046840,-1591.31196037,0.00019484,2]
[315154524,1708893046849,-1482.04413286,0.00019486,2]
[315154527,1708893046858,-1591.31196037,0.0001949,2]
[315154528,1708893046867,-1591.31196037,0.0001949,2]
[315154531,1708893046878,-182.51135653,0.0001949,2]
[315154533,1708893046888,-1482.04413286,0.00019494,2]
[315154534,1708893046897,-3959.77627347,0.00019495,2]
[315154536,1708893046906,-200.5569553,0.000195,2]
[315154538,1708893046916,-580.0,0.000196,2]
[315154540,1708893046925,-314.73297265,0.00019619,2]
[315154542,1708893046934,-166.666666,0.00019627,2]
[315154544,1708893046944,-1200.46340867,0.000197,2]
[315154546,1708893046953,-1200.46340867,0.000197,2]
[315154548,1708893046962,-1200.46340867,0.000197,2]
[315154550,1708893046971,-2987.19964487,0.000197,2]
[315154552,1708893046981,-2987.19964487,0.000197,2]
[315154554,1708893046990,-2987.19964487,0.000197,2]
[315154556,1708893046999,-1118.03329318,0.000197,2]
[315154558,1708893047008,-1118.03329318,0.000197,2]
[315154560,1708893047017,-1118.03329318,0.000197,2]
[315154562,1708893047026,-217.62853172,0.000197,2]
[315154564,1708893047035,-217.62853172,0.000197,2]
[315154566,1708893047044,-217.62853172,0.000197,2]
[315154568,1708893047054,-14543.03028553,0.00019709,2]
[315154572,1708893047081,-6207.39252176,0.00019709,2]
[315155558,1708893586041,198.270104,0.00018116,2]
[315155564,1708893769401,65613.55230367,0.00018116,2]
[315155582,1708893787400,43742.36820244,0.00018116,2]
[315155586,1708893803528,36451.97350204,0.00018116,2]
[315155588,1708893825411,18991.47819456,0.00018116,2]
[315155589,1708893843537,18991.47819456,0.00018116,2]
[315155590,1708893856405,1690.2937372,0.00018169,2]
[315155591,1708893859918,18991.47819456,0.00018116,2]
[315155593,1708893883914,18991.47819456,0.00018116,2]
[315155594,1708893901914,18991.47819456,0.00018116,2]
[315155596,1708893919928,18991.47819456,0.00018116,2]
[315155597,1708893935943,18991.47819456,0.00018116,2]
[315155599,1708893953949,18991.47819456,0.00018116,2]
[315155600,1708893971984,18991.47819456,0.00018116,2]
[315155601,1708893993947,18991.47819456,0.00018116,2]
[315155602,1708894062143,198.270104,0.00018162,2]
[315156206,1708894237897,-249.59878705,0.000189,2]
[315156208,1708894237911,-920.40513939,0.00019027,2]
[315156210,1708894237926,-500.0,0.00019027,2]
[315156212,1708894237936,-69514.41407468,0.00019028,2]
[315156215,1708894237950,-319.96792312,0.00019078,2]
[315156217,1708894237962,-500.0,0.00019082,2]
[315156219,1708894237973,-500.0,0.00019137,2]
[315156221,1708894237983,-500.0,0.00019178,2]
[315156223,1708894237994,-278.44329834,0.00019178,2]
[315156225,1708894238005,-500.0,0.00019178,2]
[315156227,1708894238016,-500.0,0.00019178,2]
[315156229,1708894238027,-500.0,0.00019178,2]
[315156231,1708894238038,-424.33305063,0.00019178,2]
[315156233,1708894238050,-167.6391983,0.00019178,2]
[315156235,1708894238062,-500.0,0.00019178,2]
[315156237,1708894238074,-500.0,0.00019178,2]
[315156239,1708894238086,-500.0,0.00019178,2]
[315156241,1708894238097,-319.09963093,0.00019178,2]
[315156243,1708894238109,-500.0,0.00019178,2]
[315156245,1708894238119,-500.0,0.00019178,2]
[315156247,1708894238129,-500.0,0.00019178,2]
[315156249,1708894238139,-500.67599699,0.00019178,2]
[315156251,1708894238148,-500.0,0.00019178,2]
[315156253,1708894238159,-502.42020174,0.00019178,2]
[315156255,1708894238169,-500.0,0.00019178,2]
[315156257,1708894238181,-549.86995399,0.00019178,2]
[315156259,1708894238192,-500.0,0.00019178,2]
[315156261,1708894238203,-500.0,0.00019178,2]
[315156263,1708894238213,-582.12796174,0.00019178,2]
[315156265,1708894238224,-151.0,0.00019178,2]
[315156267,1708894238234,-949.36,0.00019178,2]
[315156269,1708894238244,-500.0,0.00019178,2]
[315156271,1708894238254,-233.97079204,0.00019178,2]
[315156273,1708894238264,-500.0,0.00019178,2]
[315156275,1708894238274,-500.0,0.00019178,2]
[315156277,1708894238284,-500.0,0.00019178,2]
[315156279,1708894238294,-319.09963093,0.00019178,2]
[315156281,1708894238306,-500.0,0.00019178,2]
[315156283,1708894238316,-500.0,0.00019178,2]
[315156285,1708894238327,-500.0,0.00019178,2]
[315156287,1708894238337,-500.0,0.00019178,2]
[315156289,1708894238348,-500.0,0.00019178,2]
[315156291,1708894238358,-501.04178024,0.00019178,2]
[315156293,1708894238367,-503.08381531,0.00019178,2]
[315156295,1708894238378,-614.95785219,0.00019178,2]
[315156297,1708894238388,-500.0,0.00019178,2]
[315156299,1708894238398,-500.0,0.00019178,2]
[315156300,1708894238409,-500.0,0.00019178,2]
[315156302,1708894238420,-500.0,0.00019178,2]
[315156304,1708894238430,-500.0,0.00019178,2]
[315156305,1708894238440,-500.0,0.00019178,2]
[315156306,1708894238451,-500.50799428,0.00019178,2]
[315156307,1708894238462,-500.0,0.00019178,2]
[315156308,1708894238472,-500.0,0.00019178,2]
[315156309,1708894238483,-417.59276965,0.00019178,2]
[315156310,1708894238494,-500.0,0.00019178,2]
[315156311,1708894238504,-500.0,0.00019178,2]
[315156312,1708894238514,-500.0,0.00019178,2]
[315156313,1708894238525,-500.0,0.00019178,2]
[315156314,1708894238535,-500.44554136,0.00019178,2]
[315156315,1708894238550,-502.45177139,0.00019178,2]
[315156316,1708894238560,-500.0,0.00019178,2]
[315156317,1708894238571,-500.0,0.00019178,2]
[315156318,1708894238586,-500.0,0.00019178,2]
[315156319,1708894238598,-500.0,0.00019178,2]
[315156320,1708894238608,-500.0,0.00019178,2]
[315156321,1708894238619,-500.0,0.00019178,2]
[315156322,1708894238630,-500.0,0.00019178,2]
[315156323,1708894238641,-500.0,0.00019178,2]
[315156324,1708894238651,-500.0,0.00019178,2]
[315156325,1708894238664,-500.0,0.00019178,2]
[315156326,1708894238676,-500.0,0.00019178,2]
[315156327,1708894238686,-500.0,0.00019178,2]
[315156329,1708894238697,-500.0,0.00019178,2]
[315156331,1708894238707,-500.0,0.00019178,2]
[315156333,1708894238717,-500.0,0.00019178,2]
[315156335,1708894238728,-500.0,0.00019178,2]
[315156337,1708894238738,-500.0,0.00019178,2]
[315156339,1708894238748,-507.85562796,0.00019178,2]
[315156341,1708894238759,-500.0,0.00019178,2]
[315156343,1708894238770,-513.27120478,0.00019178,2]
[315156345,1708894238781,-500.0,0.00019178,2]
[315156347,1708894238791,-500.0,0.00019178,2]
[315156349,1708894238802,-500.0,0.00019178,2]
[315156351,1708894238812,-500.0,0.00019178,2]
[315156352,1708894238823,-500.0,0.00019178,2]
[315156353,1708894238833,-243.58118859,0.00019178,2]
[315156354,1708894238844,-500.0,0.00019178,2]
[315156355,1708894238855,-500.0,0.00019178,2]
[315156356,1708894238866,-500.0,0.00019178,2]
[315156357,1708894238877,-500.0,0.00019178,2]
[315156358,1708894238888,-319.09963093,0.00019178,2]
[315156359,1708894238898,-500.0,0.00019178,2]
[315156360,1708894239064,-500.0,0.00019178,2]
[315156361,1708894239075,-500.0,0.00019178,2]
[315156362,1708894239084,-416.28618606,0.00019178,2]
[315156363,1708894239094,-500.0,0.00019178,2]
[315156364,1708894239103,-500.0,0.00019178,2]
[315156365,1708894239113,-500.0,0.00019178,2]
[315156366,1708894239124,-500.0,0.00019178,2]
[315156367,1708894239135,-500.60919169,0.00019178,2]
[315156368,1708894239145,-500.41343507,0.00019178,2]
[315156369,1708894239156,-500.0,0.00019178,2]
[315156370,1708894239166,-500.0,0.00019178,2]
[315156371,1708894239176,-500.0,0.00019178,2]
[315156372,1708894239185,-500.0,0.00019178,2]
[315156373,1708894239195,-500.0,0.00019178,2]
[315156374,1708894239204,-500.0,0.00019178,2]
[315156375,1708894239213,-500.0,0.00019178,2]
[315156376,1708894239222,-500.0,0.00019178,2]
[315156377,1708894239231,-500.0,0.00019178,2]
[315156378,1708894239241,-308.297928,0.00019178,2]
[315156379,1708894239250,-308.297928,0.00019178,2]
[315156380,1708894239260,-151.0,0.00019178,2]
[315156381,1708894239269,-151.0,0.00019178,2]
[315156382,1708894239279,-500.0,0.00019178,2]
[315156383,1708894239288,-957.68,0.00019178,2]
[315156384,1708894239297,-500.0,0.00019178,2]
[315156385,1708894239306,-500.0,0.00019178,2]
[315156386,1708894239315,-232.63178787,0.00019178,2]
[315156387,1708894239324,-500.0,0.00019178,2]
[315156388,1708894239333,-501.68694463,0.00019178,2]
[315156389,1708894239342,-500.0,0.00019178,2]
[315156390,1708894239351,-496.03350483,0.00019178,2]
[315156391,1708894239360,-1451.09,0.00019178,2]
[315156392,1708894239370,-187.33386723,0.00019178,2]
[315156393,1708894239379,-500.0,0.00019178,2]
[315156394,1708894239388,-405.0519369,0.00019178,2]
[315156395,1708894239397,-500.0,0.00019178,2]
[315156396,1708894239406,-631.02090704,0.00019178,2]
[315156397,1708894239416,-500.0,0.00019178,2]
[315156398,1708894239425,-1142.87,0.00019178,2]
[315156399,1708894239434,-500.0,0.00019178,2]
[315156400,1708894239442,-500.0,0.00019178,2]
[315156401,1708894239451,-500.0,0.00019178,2]
[315156402,1708894239460,-500.0,0.00019178,2]
[315156403,1708894239469,-500.0,0.00019178,2]
[315156404,1708894239478,-500.0,0.00019178,2]
[315156405,1708894239488,-500.0,0.00019178,2]
[315156406,1708894239497,-151.0,0.00019178,2]
[315156407,1708894239506,-151.0,0.00019178,2]
[315156408,1708894239515,-500.0,0.00019178,2]
[315156409,1708894239524,-500.0,0.00019178,2]
[315156410,1708894239534,-504.63311512,0.00019178,2]
[315156411,1708894239543,-500.0,0.00019178,2]
[315156412,1708894239553,-500.0,0.00019178,2]
[315156413,1708894239562,-500.0,0.00019178,2]
[315156414,1708894239571,-500.0,0.00019178,2]
[315156415,1708894239581,-500.0,0.00019178,2]
[315156416,1708894239592,-500.0,0.00019178,2]
[315156417,1708894239603,-1435.02,0.00019178,2]
[315156418,1708894239612,-500.0,0.00019178,2]
[315156419,1708894239621,-518.18,0.00019178,2]
[315156420,1708894239632,-544.03141441,0.00019178,2]
[315156421,1708894239640,-500.0,0.00019178,2]
[315156422,1708894239650,-500.0,0.00019178,2]
[315156423,1708894239659,-500.0,0.00019178,2]
[315156424,1708894239670,-500.0,0.00019178,2]
[315156425,1708894239679,-500.0,0.00019178,2]
[315156427,1708894239688,-412.07836257,0.00019178,2]
[315156429,1708894239698,-500.0,0.00019178,2]
[315156431,1708894239707,-1000.92,0.00019178,2]
[315156433,1708894239716,-500.39052972,0.00019178,2]
[315156435,1708894239725,-500.0,0.00019178,2]
[315156437,1708894239734,-500.0,0.00019178,2]
[315156439,1708894239743,-500.0,0.00019178,2]
[315156440,1708894239752,-213.34353825,0.00019178,2]
[315156441,1708894239761,-500.0,0.00019178,2]
[315156443,1708894239770,-561.17050029,0.00019178,2]
[315156445,1708894239780,-500.0,0.00019178,2]
[315156446,1708894239789,-500.0,0.00019178,2]
[315156448,1708894239799,-1209.91,0.00019178,2]
[315156450,1708894239808,-1872.41,0.00019178,2]
[315156452,1708894239817,-500.0,0.00019178,2]
[315156454,1708894239826,-500.0,0.00019178,2]
[315156455,1708894239835,-500.0,0.00019178,2]
[315156457,1708894239844,-500.0,0.00019178,2]
[315156459,1708894239854,-319.09963093,0.00019178,2]
[315156460,1708894239863,-500.0,0.00019178,2]
[315156462,1708894239872,-500.0,0.00019178,2]
[315156463,1708894239881,-1839.42,0.00019178,2]
[315156464,1708894239890,-1341.95,0.00019178,2]
[315156465,1708894239900,-500.0,0.00019178,2]
[315156466,1708894239908,-338.43794942,0.00019178,2]
[315156467,1708894239919,-500.0,0.00019178,2]
[315156468,1708894239928,-500.0,0.00019178,2]
[315156469,1708894239938,-500.0,0.00019178,2]
[315156470,1708894239948,-500.0,0.00019178,2]
[315156471,1708894239957,-500.0,0.00019178,2]
[315156472,1708894239967,-500.0,0.00019178,2]
[315156473,1708894239977,-7203.29,0.00019178,2]
[315156474,1708894239986,-197.92538761,0.00019178,2]
[315156475,1708894239996,-500.0,0.00019178,2]
[315156476,1708894240005,-500.0,0.00019178,2]
[315156477,1708894240014,-180.15387513,0.00019178,2]
[315156478,1708894240024,-2548.29,0.00019178,2]
[315156479,1708894240033,-500.9168553,0.00019178,2]
[315156480,1708894240043,-500.0,0.00019178,2]
[315156481,1708894240053,-500.0,0.00019178,2]
[315156482,1708894240063,-442.88163336,0.00019178,2]
[315156483,1708894240072,-14984.91,0.00019178,2]
[315156484,1708894240082,-500.0,0.00019178,2]
[315156485,1708894240091,-500.0,0.00019178,2]
[315156486,1708894240102,-151.0,0.00019178,2]
[315156487,1708894240112,-151.0,0.00019178,2]
[315156488,1708894240122,-500.0,0.00019178,2]
[315156489,1708894240131,-1405.58,0.00019178,2]
[315156490,1708894240140,-1151.89,0.00019178,2]
[315156491,1708894240151,-1451.95,0.00019178,2]
[315156492,1708894240160,-500.92520509,0.00019178,2]
[315156493,1708894240171,-500.0,0.00019178,2]
[315156494,1708894240181,-5553.57,0.00019178,2]
[315156495,1708894240190,-500.0,0.00019178,2]